[Event "Titled Tuesday Blitz August 31 2021"]
[White "Materia, Marco"]
[Black "Franca, Willian Bento"]
[WhiteFideId "45150451"]
[BlackFideId "2158850"]
[WhiteElo "2659"]
[BlackElo "2122"]
[Result "1-0"]
[Round "09"]
[TimeControl "180+1"]
[Date "2021.08.31"]
[WhiteClock "0:01:13"]
[BlackClock "0:00:04"]

1. d4 {[%clk 0:03:00]}  Nf6 {[%clk 0:02:56]} 2. c4 {[%clk 0:03:01]}  g6 {[%clk 0:02:54]} 3. Nc3 {[%clk 0:03:01]}  Bg7 {[%clk 0:02:54]} 4. e4 {[%clk 0:03:01]}  O-O {[%clk 0:02:54]} 5. Nf3 {[%clk 0:03:01]}  d6 {[%clk 0:02:54]} 6. Be2 {[%clk 0:03:01]}  c6 {[%clk 0:02:55]} 7. O-O {[%clk 0:03:01]}  a6 {[%clk 0:02:55]} 8. Bg5 {[%clk 0:02:59]}  b5 {[%clk 0:02:56]} 9. Re1 {[%clk 0:02:56]}  b4 {[%clk 0:02:54]} 10. Bxf6 {[%clk 0:02:56]}  Bxf6 {[%clk 0:02:49]} 11. Na4 {[%clk 0:02:50]}  e5 {[%clk 0:02:49]} 12. dxe5 {[%clk 0:02:49]}  dxe5 {[%clk 0:02:48]} 13. a3 {[%clk 0:02:43]}  Qe7 {[%clk 0:02:28]} 14. Qb3 {[%clk 0:02:34]}  Nd7 {[%clk 0:01:47]} 15. axb4 {[%clk 0:02:25]}  Rb8 {[%clk 0:01:47]} 16. b5 {[%clk 0:02:22]}  axb5 {[%clk 0:01:39]} 17. cxb5 {[%clk 0:02:22]}  cxb5 {[%clk 0:01:34]} 18. Nc3 {[%clk 0:02:22]}  Nc5 {[%clk 0:01:28]} 19. Qc2 {[%clk 0:02:22]}  Be6 {[%clk 0:01:22]} 20. Nxb5 {[%clk 0:02:13]}  Rfc8 {[%clk 0:01:21]} 21. Ra7 {[%clk 0:02:11]}  Qf8 {[%clk 0:01:13]} 22. Nc3 {[%clk 0:02:07]}  Nb3 {[%clk 0:01:04]} 23. Qd1 {[%clk 0:01:55]}  Nd4 {[%clk 0:00:57]} 24. Nxd4 {[%clk 0:01:51]}  exd4 {[%clk 0:00:57]} 25. Nd5 {[%clk 0:01:45]}  Bxd5 {[%clk 0:00:58]} 26. exd5 {[%clk 0:01:45]}  Rxb2 {[%clk 0:00:57]} 27. Bg4 {[%clk 0:01:41]}  Rcc2 {[%clk 0:00:48]} 28. Rf1 {[%clk 0:01:23]}  Kg7 {[%clk 0:00:46]} 29. Be6 {[%clk 0:01:22]}  Be7 {[%clk 0:00:41]} 30. Qxd4+ {[%clk 0:01:21]}  Kg8 {[%clk 0:00:41]} 31. d6 {[%clk 0:01:19]}  Rd2 {[%clk 0:00:24]} 32. dxe7 {[%clk 0:01:18]}  Qb8 {[%clk 0:00:04]} 33. Bxf7+ {[%clk 0:01:12]}  Kxf7 {[%clk 0:00:04]} 34. e8=Q+ {[%clk 0:01:13]}  Kxe8 {[%clk 0:00:04]} 35. Qh8# {[%clk 0:01:13]} 1-0


[Site "https://www.chess.com"]

[Event "Titled Tuesday Blitz August 31 2021"]
[White "Mikhailovsky, Vladimir"]
[Black "Leenhouts, Koen"]
[WhiteFideId "34105414"]
[BlackFideId "1008439"]
[WhiteElo "2315"]
[BlackElo "2409"]
[Result "0-1"]
[Round "09"]
[TimeControl "180+1"]
[Date "2021.08.31"]
[WhiteClock "0:00:48"]
[BlackClock "0:00:45"]

1. e4 {[%clk 0:03:00]}  e5 {[%clk 0:02:58]} 2. Nc3 {[%clk 0:02:59]}  Nf6 {[%clk 0:02:58]} 3. g3 {[%clk 0:02:59]}  d5 {[%clk 0:02:56]} 4. exd5 {[%clk 0:03:00]}  Nxd5 {[%clk 0:02:56]} 5. Bg2 {[%clk 0:03:01]}  Nxc3 {[%clk 0:02:56]} 6. bxc3 {[%clk 0:03:02]}  Bd6 {[%clk 0:02:53]} 7. Nf3 {[%clk 0:03:01]}  O-O {[%clk 0:02:49]} 8. O-O {[%clk 0:03:02]}  Bg4 {[%clk 0:02:42]} 9. d3 {[%clk 0:03:02]}  Nc6 {[%clk 0:02:37]} 10. Rb1 {[%clk 0:03:02]}  Rb8 {[%clk 0:02:32]} 11. h3 {[%clk 0:03:01]}  Bh5 {[%clk 0:02:31]} 12. g4 {[%clk 0:03:02]}  Bg6 {[%clk 0:02:32]} 13. Ng5 {[%clk 0:03:03]}  h6 {[%clk 0:02:24]} 14. Ne4 {[%clk 0:03:03]}  f5 {[%clk 0:02:10]} 15. Ng3 {[%clk 0:02:57]}  fxg4 {[%clk 0:02:03]} 16. hxg4 {[%clk 0:02:56]}  Bc5 {[%clk 0:01:55]} 17. Qe2 {[%clk 0:02:50]}  Qh4 {[%clk 0:01:49]} 18. d4 {[%clk 0:02:03]}  Bd6 {[%clk 0:01:32]} 19. d5 {[%clk 0:01:36]}  Ne7 {[%clk 0:01:21]} 20. Be4 {[%clk 0:01:36]}  Bc5 {[%clk 0:01:15]} 21. Kg2 {[%clk 0:01:34]}  Bxe4+ {[%clk 0:01:02]} 22. Qxe4 {[%clk 0:01:35]}  Rxf2+ {[%clk 0:00:48]} 23. Rxf2 {[%clk 0:01:30]}  Bxf2 {[%clk 0:00:49]} 24. Kxf2 {[%clk 0:01:25]}  Qh2+ {[%clk 0:00:48]} 25. Qg2 {[%clk 0:01:25]}  Rf8+ {[%clk 0:00:49]} 26. Nf5 {[%clk 0:01:25]}  Qh4+ {[%clk 0:00:49]} 27. Qg3 {[%clk 0:01:22]}  Nxf5 {[%clk 0:00:47]} 28. gxf5 {[%clk 0:01:03]}  Rxf5+ {[%clk 0:00:48]} 29. Kg2 {[%clk 0:01:03]}  Qe4+ {[%clk 0:00:47]} 30. Kg1 {[%clk 0:00:53]}  Rf3 {[%clk 0:00:45]} 31. Qg2 {[%clk 0:00:48]}  Qe1+ {[%clk 0:00:45]} 32. Kh2 {[%clk 0:00:48]}  Rf2 {[%clk 0:00:45]} 0-1


[Site "https://www.chess.com"]

[Event "Titled Tuesday Blitz August 31 2021"]
[White "Mokshanov, Alexey"]
[Black "Kozak, Antoni"]
[WhiteFideId "24121657"]
[BlackFideId "21832030"]
[WhiteElo "2262"]
[BlackElo "2289"]
[Result "1-0"]
[Round "09"]
[TimeControl "180+1"]
[Date "2021.08.31"]
[WhiteClock "0:00:16"]
[BlackClock "0:00:15"]

1. e4 {[%clk 0:03:00]}  c6 {[%clk 0:02:59]} 2. d4 {[%clk 0:03:00]}  d5 {[%clk 0:02:59]} 3. e5 {[%clk 0:02:59]}  Bf5 {[%clk 0:02:59]} 4. h4 {[%clk 0:02:59]}  a6 {[%clk 0:02:58]} 5. g4 {[%clk 0:02:47]}  Bd7 {[%clk 0:02:57]} 6. Be3 {[%clk 0:02:47]}  e6 {[%clk 0:02:50]} 7. f4 {[%clk 0:02:44]}  Qb6 {[%clk 0:02:36]} 8. b3 {[%clk 0:02:41]}  h5 {[%clk 0:02:28]} 9. gxh5 {[%clk 0:02:40]}  Nh6 {[%clk 0:02:27]} 10. Nf3 {[%clk 0:02:22]}  c5 {[%clk 0:02:23]} 11. c3 {[%clk 0:02:12]}  Bb5 {[%clk 0:02:05]} 12. dxc5 {[%clk 0:01:58]}  Bxc5 {[%clk 0:02:03]} 13. Bxc5 {[%clk 0:01:58]}  Qxc5 {[%clk 0:02:03]} 14. Qd4 {[%clk 0:01:59]}  Qc7 {[%clk 0:01:50]} 15. Bxb5+ {[%clk 0:01:55]}  axb5 {[%clk 0:01:49]} 16. Qb4 {[%clk 0:01:55]}  Ra5 {[%clk 0:01:26]} 17. Nd4 {[%clk 0:01:49]}  Qb6 {[%clk 0:00:54]} 18. Nd2 {[%clk 0:01:22]}  Na6 {[%clk 0:00:48]} 19. Qd6 {[%clk 0:01:19]}  Qxd6 {[%clk 0:00:47]} 20. exd6 {[%clk 0:01:20]}  b4 {[%clk 0:00:46]} 21. c4 {[%clk 0:00:49]}  Kd7 {[%clk 0:00:38]} 22. Rg1 {[%clk 0:00:49]}  Rh7 {[%clk 0:00:27]} 23. Nb5 {[%clk 0:00:44]}  dxc4 {[%clk 0:00:24]} 24. bxc4 {[%clk 0:00:44]}  Nc5 {[%clk 0:00:24]} 25. Nf3 {[%clk 0:00:43]}  f6 {[%clk 0:00:22]} 26. Ke2 {[%clk 0:00:24]}  Nf5 {[%clk 0:00:22]} 27. a4 {[%clk 0:00:21]}  Rxa4 {[%clk 0:00:20]} 28. Rxa4 {[%clk 0:00:20]}  Nxa4 {[%clk 0:00:21]} 29. Rb1 {[%clk 0:00:20]}  Nxd6 {[%clk 0:00:19]} 30. Rxb4 {[%clk 0:00:20]}  Nxb5 {[%clk 0:00:19]} 31. Rxb5 {[%clk 0:00:20]}  Nc5 {[%clk 0:00:19]} 32. Rxc5 {[%clk 0:00:20]}  Kd6 {[%clk 0:00:19]} 33. Rb5 {[%clk 0:00:21]}  Kc6 {[%clk 0:00:19]} 34. Nd4+ {[%clk 0:00:21]}  Kd6 {[%clk 0:00:20]} 35. Kd3 {[%clk 0:00:18]}  e5 {[%clk 0:00:17]} 36. fxe5+ {[%clk 0:00:16]}  fxe5 {[%clk 0:00:18]} 37. Nf5+ {[%clk 0:00:16]}  Ke6 {[%clk 0:00:19]} 38. Ng3 {[%clk 0:00:16]}  Rh8 {[%clk 0:00:15]} 1-0


[Site "https://www.chess.com"]

[Event "Titled Tuesday Blitz August 31 2021"]
[White "Naroditsky, Daniel"]
[Black "Jobava, Baadur"]
[WhiteFideId "2026961"]
[BlackFideId "13601520"]
[WhiteElo "2608"]
[BlackElo "2748"]
[Result "0-1"]
[Round "09"]
[TimeControl "180+1"]
[Date "2021.08.31"]
[WhiteClock "0:00:03"]
[BlackClock "0:00:20"]

1. b3 {[%clk 0:03:00]}  d5 {[%clk 0:02:58]} 2. Bb2 {[%clk 0:03:01]}  c6 {[%clk 0:02:59]} 3. d3 {[%clk 0:02:59]}  Nf6 {[%clk 0:02:59]} 4. Nd2 {[%clk 0:03:00]}  Bf5 {[%clk 0:02:57]} 5. g3 {[%clk 0:03:00]}  e6 {[%clk 0:02:56]} 6. Bg2 {[%clk 0:03:00]}  h6 {[%clk 0:02:57]} 7. e4 {[%clk 0:03:01]}  Bh7 {[%clk 0:02:57]} 8. Qe2 {[%clk 0:03:01]}  Be7 {[%clk 0:02:57]} 9. Ngf3 {[%clk 0:03:02]}  O-O {[%clk 0:02:56]} 10. O-O {[%clk 0:03:02]}  Re8 {[%clk 0:02:56]} 11. Ne5 {[%clk 0:03:01]}  Nbd7 {[%clk 0:02:55]} 12. f4 {[%clk 0:02:55]}  a5 {[%clk 0:02:54]} 13. a4 {[%clk 0:02:52]}  Nxe5 {[%clk 0:02:47]} 14. fxe5 {[%clk 0:02:45]}  Nd7 {[%clk 0:02:46]} 15. d4 {[%clk 0:02:45]}  Bb4 {[%clk 0:02:29]} 16. c3 {[%clk 0:02:40]}  Bf8 {[%clk 0:02:27]} 17. Rf2 {[%clk 0:02:40]}  Bg6 {[%clk 0:02:21]} 18. Raf1 {[%clk 0:02:40]}  Be7 {[%clk 0:02:07]} 19. h4 {[%clk 0:02:37]}  Rf8 {[%clk 0:02:07]} 20. c4 {[%clk 0:02:29]}  dxe4 {[%clk 0:02:01]} 21. Bxe4 {[%clk 0:02:20]}  Bxe4 {[%clk 0:01:50]} 22. Nxe4 {[%clk 0:02:21]}  Qb6 {[%clk 0:01:50]} 23. Qg4 {[%clk 0:01:43]}  Qxb3 {[%clk 0:01:37]} 24. Bc1 {[%clk 0:01:44]}  h5 {[%clk 0:01:22]} 25. Qxh5 {[%clk 0:01:44]}  f5 {[%clk 0:01:22]} 26. Nd2 {[%clk 0:01:16]}  Qxg3+ {[%clk 0:01:15]} 27. Rg2 {[%clk 0:01:16]}  Qxh4 {[%clk 0:01:10]} 28. Qxh4 {[%clk 0:01:04]}  Bxh4 {[%clk 0:01:10]} 29. Ba3 {[%clk 0:01:05]}  Rf7 {[%clk 0:01:07]} 30. Rg6 {[%clk 0:00:58]}  Be7 {[%clk 0:01:04]} 31. Bxe7 {[%clk 0:00:35]}  Rxe7 {[%clk 0:01:05]} 32. Kf2 {[%clk 0:00:36]}  c5 {[%clk 0:01:00]} 33. Nf3 {[%clk 0:00:36]}  cxd4 {[%clk 0:01:00]} 34. Rd1 {[%clk 0:00:34]}  Nf8 {[%clk 0:00:50]} 35. Rgg1 {[%clk 0:00:32]}  Rd8 {[%clk 0:00:50]} 36. Rxd4 {[%clk 0:00:32]}  Rxd4 {[%clk 0:00:46]} 37. Nxd4 {[%clk 0:00:33]}  Rc7 {[%clk 0:00:47]} 38. Rc1 {[%clk 0:00:29]}  Rc5 {[%clk 0:00:46]} 39. Nb3 {[%clk 0:00:29]}  Rxe5 {[%clk 0:00:46]} 40. c5 {[%clk 0:00:30]}  Nd7 {[%clk 0:00:42]} 41. c6 {[%clk 0:00:09]}  bxc6 {[%clk 0:00:43]} 42. Rxc6 {[%clk 0:00:10]}  Re4 {[%clk 0:00:27]} 43. Rc7 {[%clk 0:00:08]}  Rb4 {[%clk 0:00:23]} 44. Nxa5 {[%clk 0:00:07]}  Rxa4 {[%clk 0:00:23]} 45. Nc4 {[%clk 0:00:04]}  Nf6 {[%clk 0:00:22]} 46. Ke1 {[%clk 0:00:04]}  Ra1+ {[%clk 0:00:20]} 47. Ke2 {[%clk 0:00:04]}  Ra2+ {[%clk 0:00:21]} 48. Kf3 {[%clk 0:00:04]}  Nd5 {[%clk 0:00:21]} 49. Rc6 {[%clk 0:00:03]}  Kf7 {[%clk 0:00:21]} 50. Ne5+ {[%clk 0:00:02]}  Kf6 {[%clk 0:00:21]} 51. Nd7+ {[%clk 0:00:03]}  Ke7 {[%clk 0:00:21]} 52. Nc5 {[%clk 0:00:04]}  Ra3+ {[%clk 0:00:21]} 53. Kf2 {[%clk 0:00:04]}  Nf4 {[%clk 0:00:21]} 54. Kf1 {[%clk 0:00:02]}  Ra1+ {[%clk 0:00:20]} 55. Kf2 {[%clk 0:00:02]}  Ra3 {[%clk 0:00:21]} 56. Kf1 {[%clk 0:00:02]}  g5 {[%clk 0:00:21]} 57. Rb6 {[%clk 0:00:02]}  g4 {[%clk 0:00:21]} 58. Rb7+ {[%clk 0:00:03]}  Kf6 {[%clk 0:00:20]} 59. Nd7+ {[%clk 0:00:03]}  Kg5 {[%clk 0:00:21]} 60. Ne5 {[%clk 0:00:04]}  g3 {[%clk 0:00:20]} 61. Rg7+ {[%clk 0:00:04]}  Kf6 {[%clk 0:00:20]} 62. Ra7 {[%clk 0:00:03]}  Rxa7 {[%clk 0:00:20]} 0-1


[Site "https://www.chess.com"]

[Event "Titled Tuesday Blitz August 31 2021"]
[White "Nozdrachev, Leonid"]
[Black "Gallegos Diaz, Carlos Alberto"]
[WhiteFideId "24113433"]
[BlackFideId "3900886"]
[WhiteElo "2240"]
[BlackElo "2362"]
[Result "0-1"]
[Round "09"]
[TimeControl "180+1"]
[Date "2021.08.31"]
[WhiteClock "0:00:08"]
[BlackClock "0:00:24"]

1. e4 {[%clk 0:03:00]}  d6 {[%clk 0:02:59]} 2. d4 {[%clk 0:03:00]}  Nf6 {[%clk 0:03:00]} 3. Nc3 {[%clk 0:03:00]}  c6 {[%clk 0:03:00]} 4. h3 {[%clk 0:02:56]}  Qa5 {[%clk 0:03:00]} 5. Bd2 {[%clk 0:02:54]}  e5 {[%clk 0:02:59]} 6. Nd5 {[%clk 0:02:48]}  Qd8 {[%clk 0:02:58]} 7. Nxf6+ {[%clk 0:02:47]}  Qxf6 {[%clk 0:02:59]} 8. dxe5 {[%clk 0:02:47]}  dxe5 {[%clk 0:02:57]} 9. Nf3 {[%clk 0:02:47]}  h6 {[%clk 0:02:49]} 10. Bc3 {[%clk 0:02:42]}  Bd6 {[%clk 0:02:48]} 11. Qd2 {[%clk 0:02:37]}  O-O {[%clk 0:02:39]} 12. O-O-O {[%clk 0:02:37]}  Bc7 {[%clk 0:02:38]} 13. g4 {[%clk 0:02:32]}  Qxf3 {[%clk 0:02:37]} 14. Bd3 {[%clk 0:02:26]}  Qf4 {[%clk 0:02:35]} 15. Qxf4 {[%clk 0:02:26]}  exf4 {[%clk 0:02:34]} 16. f3 {[%clk 0:02:26]}  Nd7 {[%clk 0:02:34]} 17. h4 {[%clk 0:02:25]}  Ne5 {[%clk 0:02:33]} 18. Be2 {[%clk 0:02:25]}  Be6 {[%clk 0:02:32]} 19. Rdg1 {[%clk 0:02:21]}  g6 {[%clk 0:02:17]} 20. h5 {[%clk 0:02:12]}  g5 {[%clk 0:02:16]} 21. b3 {[%clk 0:02:08]}  f6 {[%clk 0:02:14]} 22. Kb2 {[%clk 0:02:06]}  Rad8 {[%clk 0:02:11]} 23. a4 {[%clk 0:02:06]}  a5 {[%clk 0:02:11]} 24. Rd1 {[%clk 0:02:04]}  Rxd1 {[%clk 0:02:06]} 25. Rxd1 {[%clk 0:02:03]}  Rd8 {[%clk 0:02:07]} 26. Rxd8+ {[%clk 0:01:59]}  Bxd8 {[%clk 0:02:07]} 27. Bd4 {[%clk 0:01:59]}  Kf7 {[%clk 0:01:57]} 28. Kc3 {[%clk 0:01:57]}  Be7 {[%clk 0:01:47]} 29. Bb6 {[%clk 0:01:55]}  Bb4+ {[%clk 0:01:45]} 30. Kb2 {[%clk 0:01:55]}  Nd7 {[%clk 0:01:45]} 31. Bc7 {[%clk 0:01:53]}  b6 {[%clk 0:01:31]} 32. Ba6 {[%clk 0:01:44]}  Ke7 {[%clk 0:01:30]} 33. Bc8 {[%clk 0:01:43]}  Bd6 {[%clk 0:01:15]} 34. Bxd7 {[%clk 0:01:41]}  Bxc7 {[%clk 0:01:06]} 35. Bxc6 {[%clk 0:01:41]}  Kd6 {[%clk 0:01:01]} 36. Be8 {[%clk 0:01:36]}  Bxg4 {[%clk 0:00:40]} 37. fxg4 {[%clk 0:01:34]}  f3 {[%clk 0:00:39]} 38. Kc3 {[%clk 0:01:14]}  Ke5 {[%clk 0:00:40]} 39. Kd2 {[%clk 0:01:06]}  Kf4 {[%clk 0:00:40]} 40. Ke1 {[%clk 0:01:00]}  Kxg4 {[%clk 0:00:36]} 41. c3 {[%clk 0:00:53]}  Kf4 {[%clk 0:00:36]} 42. b4 {[%clk 0:00:51]}  g4 {[%clk 0:00:37]} 43. Kf1 {[%clk 0:00:38]}  g3 {[%clk 0:00:37]} 44. Bd7 {[%clk 0:00:12]}  g2+ {[%clk 0:00:24]} 45. Kf2 {[%clk 0:00:13]}  axb4 {[%clk 0:00:24]} 46. cxb4 {[%clk 0:00:08]}  Be5 {[%clk 0:00:24]} 0-1


[Site "https://www.chess.com"]

[Event "Titled Tuesday Blitz August 31 2021"]
[White "Petriashvili, Nikoloz"]
[Black "Karthikeyan, Murali"]
[WhiteFideId "13611216"]
[BlackFideId "5074452"]
[WhiteElo "2430"]
[BlackElo "2564"]
[Result "0-1"]
[Round "09"]
[TimeControl "180+1"]
[Date "2021.08.31"]
[WhiteClock "0:00:03"]
[BlackClock "0:00:04"]

1. e4 {[%clk 0:03:00]}  e5 {[%clk 0:02:53]} 2. Nf3 {[%clk 0:03:00]}  Nc6 {[%clk 0:02:54]} 3. d4 {[%clk 0:03:01]}  exd4 {[%clk 0:02:54]} 4. Nxd4 {[%clk 0:03:02]}  Nf6 {[%clk 0:02:54]} 5. Nxc6 {[%clk 0:03:02]}  bxc6 {[%clk 0:02:55]} 6. e5 {[%clk 0:03:02]}  Qe7 {[%clk 0:02:55]} 7. Qe2 {[%clk 0:03:03]}  Nd5 {[%clk 0:02:56]} 8. h4 {[%clk 0:02:52]}  f6 {[%clk 0:02:56]} 9. c4 {[%clk 0:02:38]}  Ba6 {[%clk 0:02:48]} 10. Rh3 {[%clk 0:02:38]}  Nb6 {[%clk 0:02:37]} 11. Re3 {[%clk 0:02:28]}  O-O-O {[%clk 0:02:33]} 12. Qc2 {[%clk 0:02:28]}  fxe5 {[%clk 0:02:14]} 13. Ra3 {[%clk 0:01:47]}  Bb7 {[%clk 0:02:08]} 14. Rxa7 {[%clk 0:01:39]}  Qxh4 {[%clk 0:02:01]} 15. Be3 {[%clk 0:01:09]}  Kb8 {[%clk 0:01:53]} 16. Rxb7+ {[%clk 0:01:08]}  Kxb7 {[%clk 0:01:54]} 17. c5 {[%clk 0:01:07]}  Nd5 {[%clk 0:01:52]} 18. Bc4 {[%clk 0:01:03]}  Ra8 {[%clk 0:01:37]} 19. Qb3+ {[%clk 0:00:54]}  Kc8 {[%clk 0:01:37]} 20. Bxd5 {[%clk 0:00:54]}  cxd5 {[%clk 0:01:37]} 21. Qxd5 {[%clk 0:00:55]}  Rb8 {[%clk 0:01:19]} 22. Nd2 {[%clk 0:00:39]}  Rxb2 {[%clk 0:00:48]} 23. c6 {[%clk 0:00:39]}  Bd6 {[%clk 0:00:25]} 24. g3 {[%clk 0:00:30]}  Qb4 {[%clk 0:00:19]} 25. Rc1 {[%clk 0:00:30]}  dxc6 {[%clk 0:00:18]} 26. Qxc6 {[%clk 0:00:25]}  Rd8 {[%clk 0:00:15]} 27. a4 {[%clk 0:00:12]}  Qb7 {[%clk 0:00:14]} 28. Qc4 {[%clk 0:00:09]}  Bb4 {[%clk 0:00:14]} 29. Rc2 {[%clk 0:00:04]}  Rxc2 {[%clk 0:00:07]} 30. Qxc2 {[%clk 0:00:05]}  Qd5 {[%clk 0:00:05]} 31. Ke2 {[%clk 0:00:05]}  Bxd2 {[%clk 0:00:06]} 32. Bxd2 {[%clk 0:00:06]}  Kb7 {[%clk 0:00:06]} 33. Be3 {[%clk 0:00:06]}  Qc6 {[%clk 0:00:03]} 34. Qb3+ {[%clk 0:00:06]}  Ka8 {[%clk 0:00:03]} 35. Qb2 {[%clk 0:00:04]}  Qc4+ {[%clk 0:00:03]} 36. Kf3 {[%clk 0:00:04]}  Qd5+ {[%clk 0:00:03]} 37. Kg4 {[%clk 0:00:03]}  h5+ {[%clk 0:00:03]} 38. Kg5 {[%clk 0:00:02]}  e4+ {[%clk 0:00:03]} 39. Kg6 {[%clk 0:00:03]}  Rd6+ {[%clk 0:00:03]} 40. Kh7 {[%clk 0:00:03]}  Qf5+ {[%clk 0:00:04]} 41. Kh8 {[%clk 0:00:01]}  Rd8+ {[%clk 0:00:04]} 42. Kxg7 {[%clk 0:00:02]}  Rd7+ {[%clk 0:00:04]} 43. Kh8 {[%clk 0:00:03]}  Qh7# {[%clk 0:00:04]} 0-1


[Site "https://www.chess.com"]

[Event "Titled Tuesday Blitz August 31 2021"]
[White "Pichot, Alan"]
[Black "Abdurakhmonov, Mukhammadali"]
[WhiteFideId "110973"]
[BlackFideId "14207346"]
[WhiteElo "2622"]
[BlackElo "2266"]
[Result "0-1"]
[Round "09"]
[TimeControl "180+1"]
[Date "2021.08.31"]
[WhiteClock "0:00:02"]
[BlackClock "0:00:04"]

1. e4 {[%clk 0:03:00]}  e5 {[%clk 0:02:59]} 2. Nf3 {[%clk 0:03:01]}  Nc6 {[%clk 0:02:59]} 3. Bc4 {[%clk 0:03:01]}  Nf6 {[%clk 0:02:59]} 4. d3 {[%clk 0:03:02]}  h6 {[%clk 0:02:59]} 5. O-O {[%clk 0:03:00]}  d6 {[%clk 0:02:58]} 6. a4 {[%clk 0:03:00]}  g5 {[%clk 0:02:58]} 7. Nc3 {[%clk 0:03:00]}  Bg7 {[%clk 0:02:56]} 8. Be3 {[%clk 0:03:00]}  Be6 {[%clk 0:02:53]} 9. Bxe6 {[%clk 0:02:55]}  fxe6 {[%clk 0:02:54]} 10. a5 {[%clk 0:02:48]}  a6 {[%clk 0:02:52]} 11. Ne2 {[%clk 0:02:35]}  O-O {[%clk 0:02:48]} 12. Ng3 {[%clk 0:02:31]}  Qe8 {[%clk 0:02:48]} 13. c3 {[%clk 0:02:28]}  Kh8 {[%clk 0:02:45]} 14. Nd2 {[%clk 0:02:22]}  Ne7 {[%clk 0:02:24]} 15. Qb3 {[%clk 0:02:19]}  Qd7 {[%clk 0:02:22]} 16. f3 {[%clk 0:02:16]}  Ng6 {[%clk 0:02:22]} 17. Rfd1 {[%clk 0:02:12]}  g4 {[%clk 0:02:03]} 18. Rf1 {[%clk 0:01:53]}  gxf3 {[%clk 0:01:47]} 19. Rxf3 {[%clk 0:01:50]}  Ng4 {[%clk 0:01:47]} 20. Raf1 {[%clk 0:01:44]}  Rxf3 {[%clk 0:01:41]} 21. Rxf3 {[%clk 0:01:43]}  Nh4 {[%clk 0:01:37]} 22. Qxb7 {[%clk 0:01:43]}  Rg8 {[%clk 0:01:37]} 23. Bf2 {[%clk 0:01:34]}  Nxf3+ {[%clk 0:01:35]} 24. Nxf3 {[%clk 0:01:34]}  Qa4 {[%clk 0:01:26]} 25. Qxa6 {[%clk 0:01:26]}  Qd1+ {[%clk 0:01:23]} 26. Be1 {[%clk 0:01:26]}  Rf8 {[%clk 0:01:16]} 27. Nf1 {[%clk 0:01:16]}  h5 {[%clk 0:01:06]} 28. h3 {[%clk 0:01:14]}  Bh6 {[%clk 0:01:01]} 29. Qa7 {[%clk 0:00:47]}  Qxd3 {[%clk 0:00:42]} 30. hxg4 {[%clk 0:00:47]}  hxg4 {[%clk 0:00:41]} 31. N3h2 {[%clk 0:00:48]}  c5 {[%clk 0:00:28]} 32. Bf2 {[%clk 0:00:09]}  Qe2 {[%clk 0:00:19]} 33. Bxc5 {[%clk 0:00:10]}  dxc5 {[%clk 0:00:06]} 34. Qxc5 {[%clk 0:00:11]}  Kh7 {[%clk 0:00:04]} 35. Qe7+ {[%clk 0:00:10]}  Kh8 {[%clk 0:00:03]} 36. Qh4 {[%clk 0:00:06]}  Kg7 {[%clk 0:00:03]} 37. Qxg4+ {[%clk 0:00:06]}  Qxg4 {[%clk 0:00:03]} 38. Nxg4 {[%clk 0:00:06]}  Bc1 {[%clk 0:00:04]} 39. b3 {[%clk 0:00:03]}  Bb2 {[%clk 0:00:04]} 40. Nfe3 {[%clk 0:00:02]}  Bxc3 {[%clk 0:00:04]} 41. Nc4 {[%clk 0:00:03]}  Bd4+ {[%clk 0:00:04]} 42. Kh2 {[%clk 0:00:03]}  Rf4 {[%clk 0:00:04]} 43. Kg3 {[%clk 0:00:02]}  Rxe4 {[%clk 0:00:05]} 44. a6 {[%clk 0:00:02]}  Re2 {[%clk 0:00:05]} 45. Nf2 {[%clk 0:00:01]}  Rxf2 {[%clk 0:00:04]} 46. Nd6 {[%clk 0:00:02]}  Ra2 {[%clk 0:00:04]} 0-1


[Site "https://www.chess.com"]